[Event "Titled Tuesday Blitz October 11 Late 2022"]
[White "Curtis, John"]
[Black "Besedes, Danilo"]
[WhiteFideId "3200256"]
[BlackFideId "946796"]
[WhiteElo "2203"]
[BlackElo "2352"]
[Result "0-1"]
[Round "04"]
[TimeControl "180+1"]
[Date "2022.10.12"]
[WhiteClock "0:00:06"]
[BlackClock "0:00:07"]

1. e4 {[%clk 0:03:00]}  e6 {[%clk 0:02:58]} 2. d4 {[%clk 0:02:54]}  d5 {[%clk 0:02:58]} 3. exd5 {[%clk 0:02:55]}  exd5 {[%clk 0:02:58]} 4. Nf3 {[%clk 0:02:55]}  Bd6 {[%clk 0:02:54]} 5. Bg5 {[%clk 0:02:53]}  f6 {[%clk 0:02:52]} 6. Bh4 {[%clk 0:02:52]}  Ne7 {[%clk 0:02:52]} 7. Bg3 {[%clk 0:02:52]}  Nf5 {[%clk 0:02:47]} 8. Bxd6 {[%clk 0:02:52]}  Nxd6 {[%clk 0:02:48]} 9. Bd3 {[%clk 0:02:52]}  O-O {[%clk 0:02:47]} 10. O-O {[%clk 0:02:52]}  c6 {[%clk 0:02:44]} 11. h3 {[%clk 0:02:50]}  a5 {[%clk 0:02:44]} 12. c3 {[%clk 0:02:49]}  g6 {[%clk 0:02:36]} 13. Nbd2 {[%clk 0:02:49]}  Na6 {[%clk 0:02:35]} 14. Re1 {[%clk 0:02:46]}  Nc7 {[%clk 0:02:35]} 15. Qc2 {[%clk 0:02:45]}  Kg7 {[%clk 0:02:34]} 16. Re2 {[%clk 0:02:44]}  Re8 {[%clk 0:02:28]} 17. Rxe8 {[%clk 0:02:40]}  Qxe8 {[%clk 0:02:27]} 18. Re1 {[%clk 0:02:40]}  Qf7 {[%clk 0:02:27]} 19. a3 {[%clk 0:02:38]}  Be6 {[%clk 0:02:23]} 20. Re2 {[%clk 0:02:34]}  h5 {[%clk 0:02:11]} 21. Nh4 {[%clk 0:02:29]}  g5 {[%clk 0:01:57]} 22. Nf5+ {[%clk 0:02:24]}  Bxf5 {[%clk 0:01:55]} 23. Bxf5 {[%clk 0:02:24]}  Re8 {[%clk 0:01:50]} 24. Rxe8 {[%clk 0:02:14]}  Qxe8 {[%clk 0:01:51]} 25. Kf1 {[%clk 0:02:13]}  a4 {[%clk 0:01:30]} 26. Qb1 {[%clk 0:01:58]}  b5 {[%clk 0:01:24]} 27. Bd3 {[%clk 0:01:56]}  Ne6 {[%clk 0:01:21]} 28. Kg1 {[%clk 0:01:55]}  Nf4 {[%clk 0:01:17]} 29. Nf1 {[%clk 0:01:48]}  Qe6 {[%clk 0:01:00]} 30. Ne3 {[%clk 0:01:47]}  h4 {[%clk 0:00:50]} 31. Bf5 {[%clk 0:01:20]}  Qe7 {[%clk 0:00:40]} 32. Kf1 {[%clk 0:01:18]}  Nc4 {[%clk 0:00:34]} 33. Qc1 {[%clk 0:00:59]}  c5 {[%clk 0:00:18]} 34. Bd3 {[%clk 0:00:46]}  Qc7 {[%clk 0:00:12]} 35. dxc5 {[%clk 0:00:34]}  Nxd3 {[%clk 0:00:11]} 36. Qd1 {[%clk 0:00:29]}  Nf4 {[%clk 0:00:11]} 37. Nxd5 {[%clk 0:00:28]}  Qxc5 {[%clk 0:00:10]} 38. Nxf4 {[%clk 0:00:28]}  gxf4 {[%clk 0:00:11]} 39. Qd7+ {[%clk 0:00:28]}  Kh6 {[%clk 0:00:12]} 40. Qg4 {[%clk 0:00:26]}  Qg5 {[%clk 0:00:11]} 41. Qd7 {[%clk 0:00:25]}  Qe5 {[%clk 0:00:11]} 42. Qg4 {[%clk 0:00:22]}  Qg5 {[%clk 0:00:10]} 43. Qd7 {[%clk 0:00:22]}  f3 {[%clk 0:00:10]} 44. gxf3 {[%clk 0:00:21]}  Ne5 {[%clk 0:00:10]} 45. f4 {[%clk 0:00:20]}  Qxf4 {[%clk 0:00:10]} 46. Qc8 {[%clk 0:00:19]}  Qf3 {[%clk 0:00:08]} 47. Qh8+ {[%clk 0:00:18]}  Kg5 {[%clk 0:00:08]} 48. Qg8+ {[%clk 0:00:14]}  Kf4 {[%clk 0:00:07]} 49. Qb8 {[%clk 0:00:07]}  Qxh3+ {[%clk 0:00:07]} 50. Ke1 {[%clk 0:00:07]}  Qh1+ {[%clk 0:00:08]} 51. Kd2 {[%clk 0:00:07]}  Qd5+ {[%clk 0:00:08]} 52. Ke1 {[%clk 0:00:06]}  h3 {[%clk 0:00:09]} 53. Kf1 {[%clk 0:00:06]}  Qd1# {[%clk 0:00:07]} 0-1


[Site "https://www.chess.com"]

[Event "Titled Tuesday Blitz October 11 Late 2022"]
[White "D`Arruda, Ricardo D."]
[Black "Issani, Nameer"]
[WhiteFideId "100692"]
[BlackFideId "2619130"]
[WhiteElo "2459"]
[BlackElo "2650"]
[Result "0-1"]
[Round "04"]
[TimeControl "180+1"]
[Date "2022.10.12"]
[WhiteClock "0:01:45"]
[BlackClock "0:01:29"]

1. d4 {[%clk 0:02:49]}  Nf6 {[%clk 0:02:55]} 2. Nf3 {[%clk 0:02:47]}  e6 {[%clk 0:02:56]} 3. c4 {[%clk 0:02:47]}  Bb4+ {[%clk 0:02:55]} 4. Nbd2 {[%clk 0:02:46]}  O-O {[%clk 0:02:55]} 5. a3 {[%clk 0:02:47]}  Bxd2+ {[%clk 0:02:54]} 6. Bxd2 {[%clk 0:02:48]}  d6 {[%clk 0:02:54]} 7. Bf4 {[%clk 0:02:46]}  Nbd7 {[%clk 0:02:55]} 8. e3 {[%clk 0:02:46]}  Qe7 {[%clk 0:02:55]} 9. Qc2 {[%clk 0:02:45]}  b6 {[%clk 0:02:55]} 10. Be2 {[%clk 0:02:43]}  Bb7 {[%clk 0:02:55]} 11. O-O {[%clk 0:02:42]}  e5 {[%clk 0:02:55]} 12. Bg3 {[%clk 0:02:41]}  Rfe8 {[%clk 0:02:54]} 13. Rfe1 {[%clk 0:02:39]}  e4 {[%clk 0:02:54]} 14. Nd2 {[%clk 0:02:38]}  a5 {[%clk 0:02:53]} 15. b4 {[%clk 0:02:38]}  Nf8 {[%clk 0:02:40]} 16. c5 {[%clk 0:02:34]}  dxc5 {[%clk 0:02:25]} 17. bxc5 {[%clk 0:02:32]}  Bd5 {[%clk 0:02:14]} 18. Rec1 {[%clk 0:02:23]}  Ne6 {[%clk 0:02:06]} 19. cxb6 {[%clk 0:02:21]}  cxb6 {[%clk 0:02:06]} 20. Rab1 {[%clk 0:02:21]}  Qxa3 {[%clk 0:02:03]} 21. Rxb6 {[%clk 0:02:19]}  a4 {[%clk 0:02:00]} 22. Bd6 {[%clk 0:02:16]}  Qa2 {[%clk 0:01:59]} 23. Qc3 {[%clk 0:02:08]}  Bb3 {[%clk 0:01:35]} 24. Bb5 {[%clk 0:01:45]}  Nd5 {[%clk 0:01:29]} 0-1


[Site "https://www.chess.com"]

[Event "Titled Tuesday Blitz October 11 Late 2022"]
[White "Danielyan, Vahe"]
[Black "Melikhov, Evgeny V."]
[WhiteFideId "13304828"]
[BlackFideId "4122046"]
[WhiteElo "2630"]
[BlackElo "2438"]
[Result "1/2-1/2"]
[Round "04"]
[TimeControl "180+1"]
[Date "2022.10.12"]
[WhiteClock "0:02:20"]
[BlackClock "0:00:08"]

1. e4 {[%clk 0:03:00]}  e5 {[%clk 0:02:57]} 2. Nf3 {[%clk 0:02:52]}  Nc6 {[%clk 0:02:57]} 3. Bb5 {[%clk 0:02:52]}  a6 {[%clk 0:02:57]} 4. Ba4 {[%clk 0:02:53]}  Nf6 {[%clk 0:02:56]} 5. O-O {[%clk 0:02:48]}  Nxe4 {[%clk 0:02:56]} 6. d4 {[%clk 0:02:46]}  b5 {[%clk 0:02:55]} 7. Bb3 {[%clk 0:02:46]}  d5 {[%clk 0:02:56]} 8. dxe5 {[%clk 0:02:47]}  Be6 {[%clk 0:02:56]} 9. a4 {[%clk 0:02:47]}  Nc5 {[%clk 0:02:29]} 10. Nbd2 {[%clk 0:02:45]}  Nxb3 {[%clk 0:02:21]} 11. Nxb3 {[%clk 0:02:46]}  Be7 {[%clk 0:02:15]} 12. Be3 {[%clk 0:02:46]}  O-O {[%clk 0:02:11]} 13. h3 {[%clk 0:02:45]}  f6 {[%clk 0:02:06]} 14. exf6 {[%clk 0:02:42]}  Bxf6 {[%clk 0:02:04]} 15. Nbd4 {[%clk 0:02:41]}  Nxd4 {[%clk 0:02:02]} 16. Bxd4 {[%clk 0:02:42]}  c6 {[%clk 0:01:41]} 17. Re1 {[%clk 0:02:39]}  Bf5 {[%clk 0:01:37]} 18. c3 {[%clk 0:02:37]}  Be4 {[%clk 0:01:36]} 19. Bxf6 {[%clk 0:02:29]}  Qxf6 {[%clk 0:01:35]} 20. Nd4 {[%clk 0:02:30]}  c5 {[%clk 0:01:20]} 21. Nf3 {[%clk 0:02:27]}  Bxf3 {[%clk 0:01:12]} 22. Qxf3 {[%clk 0:02:28]}  Qxf3 {[%clk 0:01:12]} 23. gxf3 {[%clk 0:02:29]}  Rad8 {[%clk 0:01:07]} 24. Kg2 {[%clk 0:02:28]}  d4 {[%clk 0:01:06]} 25. cxd4 {[%clk 0:02:29]}  Rxd4 {[%clk 0:01:03]} 26. axb5 {[%clk 0:02:30]}  axb5 {[%clk 0:01:03]} 27. Ra7 {[%clk 0:02:31]}  Rdf4 {[%clk 0:00:45]} 28. Ree7 {[%clk 0:02:31]}  R8f7 {[%clk 0:00:37]} 29. Ra8+ {[%clk 0:02:29]}  Rf8 {[%clk 0:00:36]} 30. Raa7 {[%clk 0:02:30]}  R8f7 {[%clk 0:00:36]} 31. Ra8+ {[%clk 0:02:22]}  Rf8 {[%clk 0:00:37]} 32. Rxf8+ {[%clk 0:02:23]}  Kxf8 {[%clk 0:00:35]} 33. Rc7 {[%clk 0:02:24]}  Rb4 {[%clk 0:00:34]} 34. Rxc5 {[%clk 0:02:22]}  Rxb2 {[%clk 0:00:34]} 35. Rc7 {[%clk 0:02:23]}  b4 {[%clk 0:00:34]} 36. Kg3 {[%clk 0:02:24]}  b3 {[%clk 0:00:34]} 37. Rb7 {[%clk 0:02:25]}  Rb1 {[%clk 0:00:33]} 38. f4 {[%clk 0:02:26]}  h5 {[%clk 0:00:32]} 39. Kh4 {[%clk 0:02:26]}  b2 {[%clk 0:00:29]} 40. Kxh5 {[%clk 0:02:24]}  Rh1 {[%clk 0:00:24]} 41. Rxb2 {[%clk 0:02:24]}  Rxh3+ {[%clk 0:00:25]} 42. Kg6 {[%clk 0:02:24]}  Rh6+ {[%clk 0:00:24]} 43. Kg5 {[%clk 0:02:23]}  Ra6 {[%clk 0:00:24]} 44. f5 {[%clk 0:02:24]}  Kf7 {[%clk 0:00:22]} 45. Rb7+ {[%clk 0:02:24]}  Kf8 {[%clk 0:00:21]} 46. f4 {[%clk 0:02:25]}  Rc6 {[%clk 0:00:20]} 47. Rd7 {[%clk 0:02:24]}  Ra6 {[%clk 0:00:20]} 48. Rc7 {[%clk 0:02:24]}  Rb6 {[%clk 0:00:19]} 49. Rc5 {[%clk 0:02:24]}  Ra6 {[%clk 0:00:19]} 50. Re5 {[%clk 0:02:24]}  Kf7 {[%clk 0:00:19]} 51. Rd5 {[%clk 0:02:24]}  Rb6 {[%clk 0:00:18]} 52. Rd2 {[%clk 0:02:22]}  Ra6 {[%clk 0:00:18]} 53. Kg4 {[%clk 0:02:21]}  Rb6 {[%clk 0:00:17]} 54. Rd7+ {[%clk 0:02:21]}  Kf6 {[%clk 0:00:13]} 55. Rc7 {[%clk 0:02:22]}  g6 {[%clk 0:00:11]} 56. fxg6 {[%clk 0:02:19]}  Kxg6 {[%clk 0:00:12]} 57. Rc5 {[%clk 0:02:19]}  Kf6 {[%clk 0:00:12]} 58. Rh5 {[%clk 0:02:19]}  Kg6 {[%clk 0:00:11]} 59. f5+ {[%clk 0:02:19]}  Kg7 {[%clk 0:00:11]} 60. Kg5 {[%clk 0:02:18]}  Rb1 {[%clk 0:00:10]} 61. f6+ {[%clk 0:02:16]}  Kf7 {[%clk 0:00:09]} 62. Rh7+ {[%clk 0:02:16]}  Kf8 {[%clk 0:00:09]} 63. Rh8+ {[%clk 0:02:17]}  Kf7 {[%clk 0:00:08]} 64. Rh7+ {[%clk 0:02:16]}  Kf8 {[%clk 0:00:08]} 65. Ra7 {[%clk 0:02:14]}  Rg1+ {[%clk 0:00:08]} 66. Kf5 {[%clk 0:02:14]}  Rf1+ {[%clk 0:00:09]} 67. Ke6 {[%clk 0:02:15]}  Re1+ {[%clk 0:00:09]} 68. Kd5 {[%clk 0:02:16]}  Rd1+ {[%clk 0:00:08]} 69. Ke5 {[%clk 0:02:16]}  Re1+ {[%clk 0:00:08]} 70. Kf5 {[%clk 0:02:17]}  Rf1+ {[%clk 0:00:08]} 71. Kg5 {[%clk 0:02:18]}  Rg1+ {[%clk 0:00:09]} 72. Kh4 {[%clk 0:02:18]}  Rh1+ {[%clk 0:00:09]} 73. Kg3 {[%clk 0:02:18]}  Rf1 {[%clk 0:00:09]} 74. Kg4 {[%clk 0:02:16]}  Rxf6 {[%clk 0:00:07]} 75. Kg5 {[%clk 0:02:17]}  Rf7 {[%clk 0:00:07]} 76. Ra8+ {[%clk 0:02:18]}  Kg7 {[%clk 0:00:07]} 77. Ra6 {[%clk 0:02:17]}  Re7 {[%clk 0:00:07]} 78. Rg6+ {[%clk 0:02:18]}  Kf7 {[%clk 0:00:07]} 79. Rf6+ {[%clk 0:02:19]}  Ke8 {[%clk 0:00:07]} 80. Rf5 {[%clk 0:02:20]}  Rf7 {[%clk 0:00:08]} 81. Rxf7 {[%clk 0:02:20]}  Kxf7 {[%clk 0:00:08]} 1/2-1/2


[Site "https://www.chess.com"]

[Event "Titled Tuesday Blitz October 11 Late 2022"]
[White "Dardha, Arben"]
[Black "Chigaev, Maksim"]
[WhiteFideId "4700481"]
[BlackFideId "4108116"]
[WhiteElo "2196"]
[BlackElo "2537"]
[Result "0-1"]
[Round "04"]
[TimeControl "180+1"]
[Date "2022.10.12"]
[WhiteClock "0:00:05"]
[BlackClock "0:00:57"]

1. e4 {[%clk 0:03:00]}  c5 {[%clk 0:03:00]} 2. Nf3 {[%clk 0:03:00]}  e6 {[%clk 0:03:01]} 3. d4 {[%clk 0:03:00]}  cxd4 {[%clk 0:03:02]} 4. Nxd4 {[%clk 0:03:00]}  Nf6 {[%clk 0:03:02]} 5. Nc3 {[%clk 0:03:01]}  Nc6 {[%clk 0:03:03]} 6. Ndb5 {[%clk 0:02:58]}  Bc5 {[%clk 0:03:02]} 7. Bf4 {[%clk 0:02:54]}  O-O {[%clk 0:03:02]} 8. Be2 {[%clk 0:02:45]}  a6 {[%clk 0:02:48]} 9. Nd6 {[%clk 0:02:39]}  e5 {[%clk 0:02:42]} 10. Bg5 {[%clk 0:02:39]}  h6 {[%clk 0:02:40]} 11. Bh4 {[%clk 0:02:34]}  Nd4 {[%clk 0:02:39]} 12. Nxc8 {[%clk 0:02:30]}  Rxc8 {[%clk 0:02:39]} 13. Nd5 {[%clk 0:02:27]}  g5 {[%clk 0:02:35]} 14. Bg3 {[%clk 0:02:25]}  Nxd5 {[%clk 0:02:26]} 15. exd5 {[%clk 0:02:26]}  Nxc2+ {[%clk 0:02:26]} 16. Kf1 {[%clk 0:02:23]}  Nxa1 {[%clk 0:02:26]} 17. h4 {[%clk 0:02:20]}  g4 {[%clk 0:02:21]} 18. Bxe5 {[%clk 0:02:05]}  d6 {[%clk 0:02:14]} 19. Bc3 {[%clk 0:02:03]}  Ba7 {[%clk 0:01:55]} 20. Bxg4 {[%clk 0:01:52]}  Rxc3 {[%clk 0:01:54]} 21. bxc3 {[%clk 0:01:48]}  Qf6 {[%clk 0:01:55]} 22. Bf3 {[%clk 0:01:43]}  Qxc3 {[%clk 0:01:54]} 23. Rh3 {[%clk 0:01:41]}  Re8 {[%clk 0:01:22]} 24. Be2 {[%clk 0:01:30]}  Qd4 {[%clk 0:01:13]} 25. Rg3+ {[%clk 0:01:00]}  Kf8 {[%clk 0:01:12]} 26. Qxd4 {[%clk 0:00:42]}  Bxd4 {[%clk 0:01:13]} 27. Rd3 {[%clk 0:00:42]}  Bf6 {[%clk 0:01:12]} 28. Rf3 {[%clk 0:00:30]}  Bg7 {[%clk 0:01:12]} 29. Bd1 {[%clk 0:00:26]}  Rc8 {[%clk 0:01:09]} 30. Ke2 {[%clk 0:00:25]}  Nc2 {[%clk 0:01:08]} 31. Kd2 {[%clk 0:00:16]}  Nd4 {[%clk 0:01:08]} 32. Rg3 {[%clk 0:00:14]}  Rc5 {[%clk 0:01:07]} 33. Bh5 {[%clk 0:00:10]}  Rxd5 {[%clk 0:01:06]} 34. Ke3 {[%clk 0:00:03]}  Nf5+ {[%clk 0:01:06]} 35. Kf4 {[%clk 0:00:03]}  Nxg3 {[%clk 0:01:05]} 36. fxg3 {[%clk 0:00:04]}  Rxh5 {[%clk 0:01:05]} 37. a4 {[%clk 0:00:05]}  Ra5 {[%clk 0:01:06]} 38. Kg4 {[%clk 0:00:04]}  Rxa4+ {[%clk 0:01:07]} 39. Kh5 {[%clk 0:00:05]}  Ra5+ {[%clk 0:01:02]} 40. Kg4 {[%clk 0:00:04]}  h5+ {[%clk 0:01:02]} 41. Kh3 {[%clk 0:00:05]}  Ra3 {[%clk 0:01:02]} 42. Kh2 {[%clk 0:00:05]}  Be5 {[%clk 0:01:03]} 43. Kh3 {[%clk 0:00:03]}  Rxg3+ {[%clk 0:01:01]} 44. Kh2 {[%clk 0:00:04]}  a5 {[%clk 0:01:00]} 45. Kg1 {[%clk 0:00:03]}  a4 {[%clk 0:00:59]} 46. Kf2 {[%clk 0:00:04]}  a3 {[%clk 0:01:00]} 47. Ke2 {[%clk 0:00:05]}  a2 {[%clk 0:01:00]} 48. Kd2 {[%clk 0:00:05]}  a1=Q {[%clk 0:01:00]} 49. Kc2 {[%clk 0:00:05]}  Rc3+ {[%clk 0:00:57]} 0-1


[Site "https://www.chess.com"]

[Event "Titled Tuesday Blitz October 11 Late 2022"]
[White "De Souza, Cristiano Gomes"]
[Black "Bongo Akanga Ndjila, Barthelemy"]
[WhiteFideId "2151758"]
[BlackFideId "10609431"]
[WhiteElo "2068"]
[BlackElo "1768"]
[Result "1-0"]
[Round "04"]
[TimeControl "180+1"]
[Date "2022.10.12"]
[WhiteClock "0:00:22"]
[BlackClock "0:00:17"]

1. d4 {[%clk 0:03:00]}  d5 {[%clk 0:02:58]} 2. c4 {[%clk 0:03:00]}  e6 {[%clk 0:02:58]} 3. Nf3 {[%clk 0:02:59]}  Nf6 {[%clk 0:02:58]} 4. Nc3 {[%clk 0:02:58]}  Be7 {[%clk 0:02:56]} 5. Bg5 {[%clk 0:02:56]}  b6 {[%clk 0:02:55]} 6. e3 {[%clk 0:02:55]}  Bb7 {[%clk 0:02:55]} 7. Rc1 {[%clk 0:02:53]}  O-O {[%clk 0:02:54]} 8. Be2 {[%clk 0:02:53]}  dxc4 {[%clk 0:02:53]} 9. Bxc4 {[%clk 0:02:52]}  Nbd7 {[%clk 0:02:54]} 10. O-O {[%clk 0:02:52]}  c5 {[%clk 0:02:54]} 11. dxc5 {[%clk 0:02:51]}  Nxc5 {[%clk 0:02:54]} 12. Qe2 {[%clk 0:02:51]}  a5 {[%clk 0:02:50]} 13. Rfd1 {[%clk 0:02:51]}  Qc8 {[%clk 0:02:47]} 14. a3 {[%clk 0:02:49]}  Rd8 {[%clk 0:02:46]} 15. Nb5 {[%clk 0:02:47]}  Rxd1+ {[%clk 0:02:45]} 16. Qxd1 {[%clk 0:02:46]}  h6 {[%clk 0:02:32]} 17. Bh4 {[%clk 0:02:45]}  Qc6 {[%clk 0:02:24]} 18. Nbd4 {[%clk 0:02:41]}  Qe4 {[%clk 0:02:20]} 19. Bg3 {[%clk 0:02:36]}  Rd8 {[%clk 0:02:16]} 20. Qc2 {[%clk 0:02:32]}  Qxc2 {[%clk 0:02:10]} 21. Rxc2 {[%clk 0:02:31]}  Bd6 {[%clk 0:02:03]} 22. Bxd6 {[%clk 0:02:29]}  Rxd6 {[%clk 0:02:03]} 23. Kf1 {[%clk 0:02:27]}  Be4 {[%clk 0:01:55]} 24. Rd2 {[%clk 0:02:24]}  g5 {[%clk 0:01:21]} 25. h3 {[%clk 0:02:20]}  Nfd7 {[%clk 0:01:13]} 26. Ke2 {[%clk 0:02:12]}  e5 {[%clk 0:01:13]} 27. Nb3 {[%clk 0:02:00]}  Rxd2+ {[%clk 0:01:11]} 28. Nbxd2 {[%clk 0:01:59]}  Bc6 {[%clk 0:01:03]} 29. b4 {[%clk 0:01:55]}  axb4 {[%clk 0:01:03]} 30. axb4 {[%clk 0:01:55]}  Na4 {[%clk 0:00:56]} 31. e4 {[%clk 0:01:31]}  Kg7 {[%clk 0:00:54]} 32. Kd3 {[%clk 0:01:27]}  b5 {[%clk 0:00:51]} 33. Bb3 {[%clk 0:01:26]}  Nab6 {[%clk 0:00:47]} 34. Nf1 {[%clk 0:01:24]}  Nf6 {[%clk 0:00:35]} 35. Ng3 {[%clk 0:01:17]}  Nbd7 {[%clk 0:00:32]} 36. Ke3 {[%clk 0:01:07]}  Kg6 {[%clk 0:00:25]} 37. Nd2 {[%clk 0:00:59]}  h5 {[%clk 0:00:24]} 38. f3 {[%clk 0:00:58]}  g4 {[%clk 0:00:22]} 39. Nf5 {[%clk 0:00:59]}  Bb7 {[%clk 0:00:20]} 40. hxg4 {[%clk 0:00:55]}  hxg4 {[%clk 0:00:20]} 41. Nb1 {[%clk 0:00:50]}  Kg5 {[%clk 0:00:20]} 42. Nc3 {[%clk 0:00:48]}  gxf3 {[%clk 0:00:19]} 43. gxf3 {[%clk 0:00:47]}  Ba6 {[%clk 0:00:18]} 44. Bxf7 {[%clk 0:00:46]}  Nb6 {[%clk 0:00:17]} 45. Be6 {[%clk 0:00:38]}  Nh5 {[%clk 0:00:17]} 46. Nd5 {[%clk 0:00:33]}  Nc4+ {[%clk 0:00:15]} 47. Kf2 {[%clk 0:00:32]}  Nf4 {[%clk 0:00:16]} 48. Nxf4 {[%clk 0:00:32]}  exf4 {[%clk 0:00:17]} 49. Bxc4 {[%clk 0:00:30]}  bxc4 {[%clk 0:00:16]} 50. Nd4 {[%clk 0:00:23]}  c3 {[%clk 0:00:16]} 51. b5 {[%clk 0:00:23]}  Bb7 {[%clk 0:00:17]} 52. Ke2 {[%clk 0:00:23]}  Kh4 {[%clk 0:00:17]} 53. Kd3 {[%clk 0:00:22]}  Kg3 {[%clk 0:00:17]} 54. Kxc3 {[%clk 0:00:21]}  Bxe4 {[%clk 0:00:16]} 55. fxe4 {[%clk 0:00:21]}  f3 {[%clk 0:00:17]} 56. Nxf3 {[%clk 0:00:21]}  Kxf3 {[%clk 0:00:18]} 57. e5 {[%clk 0:00:22]}  Kf4 {[%clk 0:00:17]} 58. e6 {[%clk 0:00:22]} 1-0


[Site "https://www.chess.com"]

[Event "Titled Tuesday Blitz October 11 Late 2022"]
[White "Dilanyan, Grigor"]
[Black "Rustemov, Alexander"]
[WhiteFideId "13303570"]
[BlackFideId "4119002"]
[WhiteElo "2264"]
[BlackElo "2859"]
[Result "0-1"]
[Round "04"]
[TimeControl "180+1"]
[Date "2022.10.11"]
[WhiteClock "0:00:01"]
[BlackClock "0:00:20"]

1. d4 {[%clk 0:02:59]}  d5 {[%clk 0:02:59]} 2. Nf3 {[%clk 0:02:59]}  Nf6 {[%clk 0:02:58]} 3. c4 {[%clk 0:02:58]}  c6 {[%clk 0:02:58]} 4. Nbd2 {[%clk 0:02:58]}  Bf5 {[%clk 0:02:56]} 5. Nh4 {[%clk 0:02:58]}  Be4 {[%clk 0:02:52]} 6. Qb3 {[%clk 0:02:47]}  Qc7 {[%clk 0:02:50]} 7. Nxe4 {[%clk 0:02:32]}  dxe4 {[%clk 0:02:50]} 8. g3 {[%clk 0:02:32]}  e6 {[%clk 0:02:42]} 9. Bf4 {[%clk 0:02:31]}  Qa5+ {[%clk 0:02:32]} 10. Bd2 {[%clk 0:02:29]}  Qb6 {[%clk 0:02:26]} 11. c5 {[%clk 0:02:27]}  Qxb3 {[%clk 0:02:06]} 12. axb3 {[%clk 0:02:28]}  Nd5 {[%clk 0:02:00]} 13. Ng2 {[%clk 0:02:22]}  Nd7 {[%clk 0:01:58]} 14. Nf4 {[%clk 0:02:02]}  Nxf4 {[%clk 0:01:56]} 15. Bxf4 {[%clk 0:01:52]}  f5 {[%clk 0:01:56]} 16. b4 {[%clk 0:01:43]}  a6 {[%clk 0:01:55]} 17. f3 {[%clk 0:01:34]}  exf3 {[%clk 0:01:52]} 18. exf3 {[%clk 0:01:35]}  Nf6 {[%clk 0:01:51]} 19. b5 {[%clk 0:01:27]}  cxb5 {[%clk 0:01:49]} 20. Bxb5+ {[%clk 0:01:25]}  Kf7 {[%clk 0:01:50]} 21. Bc4 {[%clk 0:01:07]}  Be7 {[%clk 0:01:40]} 22. Be5 {[%clk 0:00:55]}  Rhd8 {[%clk 0:01:40]} 23. Kf2 {[%clk 0:00:43]}  Nd5 {[%clk 0:01:40]} 24. Rhe1 {[%clk 0:00:41]}  Bf6 {[%clk 0:01:38]} 25. Re2 {[%clk 0:00:39]}  Bxe5 {[%clk 0:01:33]} 26. Rxe5 {[%clk 0:00:40]}  Nc7 {[%clk 0:01:12]} 27. Rxf5+ {[%clk 0:00:34]}  Ke7 {[%clk 0:01:10]} 28. Rf4 {[%clk 0:00:34]}  Rd7 {[%clk 0:01:00]} 29. Re4 {[%clk 0:00:21]}  Rad8 {[%clk 0:01:00]} 30. Ke3 {[%clk 0:00:13]}  Kf6 {[%clk 0:00:58]} 31. Re1 {[%clk 0:00:13]}  g6 {[%clk 0:00:41]} 32. f4 {[%clk 0:00:12]}  h5 {[%clk 0:00:40]} 33. Kd3 {[%clk 0:00:12]}  Kf7 {[%clk 0:00:30]} 34. Kc3 {[%clk 0:00:12]}  Re7 {[%clk 0:00:29]} 35. b4 {[%clk 0:00:12]}  Kf6 {[%clk 0:00:29]} 36. h3 {[%clk 0:00:11]}  Red7 {[%clk 0:00:22]} 37. R1e3 {[%clk 0:00:09]}  Re7 {[%clk 0:00:21]} 38. g4 {[%clk 0:00:09]}  hxg4 {[%clk 0:00:21]} 39. hxg4 {[%clk 0:00:10]}  Red7 {[%clk 0:00:21]} 40. Bxe6 {[%clk 0:00:09]}  Nb5+ {[%clk 0:00:21]} 41. Kc4 {[%clk 0:00:08]}  Rxd4+ {[%clk 0:00:22]} 42. Rxd4 {[%clk 0:00:08]}  Rxd4+ {[%clk 0:00:22]} 43. Kb3 {[%clk 0:00:09]}  Rxf4 {[%clk 0:00:22]} 44. Bc8 {[%clk 0:00:08]}  Nd4+ {[%clk 0:00:21]} 45. Kc3 {[%clk 0:00:08]}  Nc6 {[%clk 0:00:22]} 46. Bxb7 {[%clk 0:00:03]}  Nxb4 {[%clk 0:00:23]} 47. c6 {[%clk 0:00:03]}  Nd5+ {[%clk 0:00:23]} 48. Kd3 {[%clk 0:00:03]}  Nxe3 {[%clk 0:00:23]} 49. Bxa6 {[%clk 0:00:02]}  Nd5 {[%clk 0:00:22]} 50. Bc8 {[%clk 0:00:02]}  g5 {[%clk 0:00:20]} 51. Bf5 {[%clk 0:00:01]}  Ke5 {[%clk 0:00:20]} 0-1


[Site "https://www.chess.com"]

[Event "Titled Tuesday Blitz October 11 Late 2022"]
[White "Donchenko, Alexander"]
[Black "Nasuta, Grzegorz"]
[WhiteFideId "24603295"]
[BlackFideId "1141686"]
[WhiteElo "2572"]
[BlackElo "2442"]
[Result "1-0"]
[Round "04"]
[TimeControl "180+1"]
[Date "2022.10.11"]
[WhiteClock "0:01:22"]
[BlackClock "0:00:03"]

1. Nf3 {[%clk 0:03:00]}  d5 {[%clk 0:02:57]} 2. g3 {[%clk 0:03:00]}  Nf6 {[%clk 0:02:53]} 3. Bg2 {[%clk 0:03:00]}  c6 {[%clk 0:02:49]} 4. O-O {[%clk 0:03:00]}  Bf5 {[%clk 0:02:47]} 5. d3 {[%clk 0:03:01]}  e6 {[%clk 0:02:35]} 6. Nh4 {[%clk 0:03:00]}  Bg4 {[%clk 0:02:33]} 7. h3 {[%clk 0:03:00]}  Bh5 {[%clk 0:02:34]} 8. Qe1 {[%clk 0:03:01]}  Bc5 {[%clk 0:02:19]} 9. e4 {[%clk 0:02:58]}  O-O {[%clk 0:02:07]} 10. e5 {[%clk 0:02:57]}  Nfd7 {[%clk 0:02:07]} 11. Nd2 {[%clk 0:02:54]}  a5 {[%clk 0:02:05]} 12. c3 {[%clk 0:02:52]}  Be7 {[%clk 0:02:02]} 13. Nhf3 {[%clk 0:02:50]}  Bg6 {[%clk 0:02:01]} 14. Qe2 {[%clk 0:02:49]}  c5 {[%clk 0:01:59]} 15. a4 {[%clk 0:02:46]}  Nc6 {[%clk 0:01:58]} 16. Re1 {[%clk 0:02:46]}  Qc7 {[%clk 0:01:57]} 17. Nf1 {[%clk 0:02:45]}  Rfb8 {[%clk 0:01:52]} 18. N1h2 {[%clk 0:02:40]}  b5 {[%clk 0:01:49]} 19. Ng4 {[%clk 0:02:36]}  bxa4 {[%clk 0:00:58]} 20. Rxa4 {[%clk 0:02:35]}  Nb6 {[%clk 0:00:59]} 21. Ra1 {[%clk 0:02:33]}  a4 {[%clk 0:00:56]} 22. Bf4 {[%clk 0:02:32]}  Nd7 {[%clk 0:00:47]} 23. h4 {[%clk 0:02:26]}  Qb6 {[%clk 0:00:42]} 24. Ra2 {[%clk 0:02:20]}  a3 {[%clk 0:00:21]} 25. Rxa3 {[%clk 0:02:14]}  Rxa3 {[%clk 0:00:21]} 26. bxa3 {[%clk 0:02:15]}  Qb3 {[%clk 0:00:21]} 27. Qd2 {[%clk 0:02:03]}  Qxa3 {[%clk 0:00:18]} 28. d4 {[%clk 0:01:49]}  cxd4 {[%clk 0:00:16]} 29. Nxd4 {[%clk 0:01:49]}  Nxd4 {[%clk 0:00:16]} 30. cxd4 {[%clk 0:01:41]}  Bb4 {[%clk 0:00:16]} 31. Qc1 {[%clk 0:01:40]}  Qa7 {[%clk 0:00:08]} 32. Rd1 {[%clk 0:01:37]}  Nb6 {[%clk 0:00:08]} 33. Bf3 {[%clk 0:01:35]}  h5 {[%clk 0:00:05]} 34. Ne3 {[%clk 0:01:33]}  Rc8 {[%clk 0:00:04]} 35. Qb2 {[%clk 0:01:33]}  Bf8 {[%clk 0:00:03]} 36. Qe2 {[%clk 0:01:31]}  Nc4 {[%clk 0:00:03]} 37. Bxh5 {[%clk 0:01:30]}  Bxh5 {[%clk 0:00:02]} 38. Qxh5 {[%clk 0:01:31]}  Nb2 {[%clk 0:00:02]} 39. Rd2 {[%clk 0:01:24]}  Bb4 {[%clk 0:00:02]} 40. Rxb2 {[%clk 0:01:24]}  Qa1+ {[%clk 0:00:03]} 41. Nd1 {[%clk 0:01:22]} 1-0


[Site "https://www.chess.com"]